fUST/lending_fUST_20240412
["ID","MTS","AMOUNT","RATE_DAILY","PERIOD"]
[322209305,1712872237977,-868.54910044,0.00027395,2]
[322209307,1712872237986,-242.74204017,0.00027395,2]
[322209309,1712872237995,-484.27597572,0.00027395,2]
[322209311,1712872238005,-192.20549595,0.00027395,2]
[322209313,1712872238014,-155.44912059,0.00027395,2]
[322209314,1712872238023,-303.81962515,0.00027395,2]
[322209317,1712872238033,-154.93800623,0.00027395,2]
[322209318,1712872238043,-155.55126028,0.00027396,2]
[322209320,1712872238053,-298.19881245,0.00027396,2]
[322209322,1712872238063,-362.95294064,0.00027396,2]
[322209325,1712872238073,-152.35664233,0.00027396,2]
[322209327,1712872238084,-295.93193325,0.00027397,2]
[322209329,1712872238093,-500.0,0.00027397,2]
[322209331,1712872238102,-521.69523389,0.00027397,2]
[322209332,1712872238111,-727.6,0.00027397,2]
[322209334,1712872238122,-500.0,0.00027397,2]
[322209336,1712872238132,-172.94391221,0.00027397,2]
[322209338,1712872238141,-500.0,0.00027397,2]
[322209340,1712872238151,-500.0,0.00027397,2]
[322209342,1712872238163,-500.0,0.00027397,2]
[322209344,1712872238174,-500.0,0.00027397,2]
[322209347,1712872238183,-500.0,0.00027397,2]
[322209349,1712872238192,-756.82,0.00027397,2]
[322209350,1712872238202,-593.83444332,0.00027397,2]
[322209352,1712872238211,-500.0,0.00027397,2]
[322209354,1712872238221,-403.53579516,0.00027397,2]
[322209356,1712872238230,-607.49812115,0.00027397,2]
[322209359,1712872238241,-500.0,0.00027397,2]
[322209361,1712872238251,-500.0,0.00027397,2]
[322209362,1712872238260,-440.23207232,0.00027397,2]
[322209364,1712872238270,-500.0,0.00027397,2]
[322209367,1712872238279,-500.0,0.00027397,2]
[322209369,1712872238289,-494.79730632,0.00027397,2]
[322209371,1712872238299,-500.0,0.00027397,2]
[322209373,1712872238309,-500.0,0.00027397,2]
[322209376,1712872238318,-500.0,0.00027397,2]
[322209379,1712872238329,-459.32823551,0.00027397,2]
[322209381,1712872238338,-500.0,0.00027397,2]
[322209383,1712872238347,-295.04346083,0.00027397,2]
[322209395,1712872238452,-2113.44,0.00027397,2]
[322209397,1712872238463,-500.0,0.00027397,2]
[322209399,1712872238472,-500.0,0.00027397,2]
[322209401,1712872238482,-500.0,0.00027397,2]
[322209403,1712872238491,-516.65577381,0.00027397,2]
[322209404,1712872238501,-500.0,0.00027397,2]
[322209407,1712872238512,-500.0,0.00027397,2]
[322209409,1712872238521,-500.0,0.00027397,2]
[322209410,1712872238530,-500.0,0.00027397,2]
[322209412,1712872238539,-500.0,0.00027397,2]
[322209414,1712872238549,-500.0,0.00027397,2]
[322209415,1712872238558,-500.0,0.00027397,2]
[322209416,1712872238566,-500.0,0.00027397,2]
[322209417,1712872238575,-557.81,0.00027397,2]
[322209418,1712872238583,-500.0,0.00027397,2]
[322209419,1712872238593,-300.1343516,0.00027397,2]
[322209422,1712872238604,-506.30951657,0.00027397,2]
[322209423,1712872238613,-500.0,0.00027397,2]
[322209424,1712872238622,-500.0,0.00027397,2]
[322209425,1712872238632,-7707.81082067,0.00027397,2]
[322209426,1712872238642,-511.51799614,0.00027397,2]
[322209427,1712872238651,-500.0,0.00027397,2]
[322209428,1712872238660,-500.0,0.00027397,2]
[322209429,1712872238669,-601.64,0.00027397,2]
[322209430,1712872238679,-500.0,0.00027397,2]
[322209431,1712872238688,-500.0,0.00027397,2]
[322209432,1712872238697,-667.66,0.00027397,2]
[322209433,1712872238707,-500.0,0.00027397,2]
[322209434,1712872238716,-500.0,0.00027397,2]
[322209435,1712872238725,-370.34944153,0.00027397,2]
[322209436,1712872238735,-500.0,0.00027397,2]
[322209437,1712872238744,-505.052654,0.00027397,2]
[322209438,1712872238754,-500.0,0.00027397,2]
[322209439,1712872238763,-1735.2,0.00027397,2]
[322209440,1712872238773,-500.0,0.00027397,2]
[322209441,1712872238782,-500.0,0.00027397,2]
[322209442,1712872238792,-500.0,0.00027397,2]
[322209443,1712872238801,-500.0,0.00027397,2]
[322209445,1712872238810,-500.0,0.00027397,2]
[322209447,1712872238819,-635.01340647,0.00027397,2]
[322209449,1712872238828,-500.0,0.00027397,2]
[322209451,1712872238838,-1321.14,0.00027397,2]
[322209453,1712872238848,-503.21998664,0.00027397,2]
[322209455,1712872238858,-500.0,0.00027397,2]
[322209456,1712872238867,-500.0,0.00027397,2]
[322209459,1712872238877,-500.0,0.00027397,2]
[322209461,1712872238886,-500.0,0.00027397,2]
[322209462,1712872238895,-500.0,0.00027397,2]
[322209465,1712872238905,-500.0,0.00027397,2]
[322209467,1712872238915,-500.0,0.00027397,2]
[322209469,1712872238924,-500.0,0.00027397,2]
[322209470,1712872238933,-624.27,0.00027397,2]
[322209473,1712872238943,-500.0,0.00027397,2]
[322209474,1712872238952,-500.0,0.00027397,2]
[322209476,1712872238962,-757.76,0.00027397,2]
[322209478,1712872238971,-1130.25,0.00027397,2]
[322209480,1712872238981,-500.0,0.00027397,2]
[322209482,1712872238990,-500.0,0.00027397,2]
[322209484,1712872238999,-500.0,0.00027397,2]
[322209486,1712872239008,-500.0,0.00027397,2]
[322209488,1712872239017,-500.0,0.00027397,2]
[322209490,1712872239026,-500.0,0.00027397,2]
[322209492,1712872239036,-732.24,0.00027397,2]
[322209494,1712872239045,-508.37236142,0.00027397,2]
[322209496,1712872239054,-347.84297722,0.00027397,2]
[322209498,1712872239063,-500.0,0.00027397,2]
[322209500,1712872239072,-500.0,0.00027397,2]
[322209502,1712872239085,-500.0,0.00027397,2]
[322209504,1712872239095,-500.0,0.00027397,2]
[322209506,1712872239105,-500.0,0.00027397,2]
[322209508,1712872239114,-500.0,0.00027397,2]
[322209510,1712872239127,-500.0,0.00027397,2]
[322209512,1712872239143,-500.0,0.00027397,2]
[322209514,1712872239158,-3089.09,0.00027397,2]
[322209516,1712872239169,-500.0,0.00027397,2]
[322209518,1712872239178,-872.71,0.00027397,2]
[322209519,1712872239188,-500.0,0.00027397,2]
[322209523,1712872239207,-500.0,0.00027397,2]
[322209525,1712872239218,-500.0,0.00027397,2]
[322209527,1712872239229,-500.0,0.00027397,2]
[322209529,1712872239238,-500.0,0.00027397,2]
[322209531,1712872239248,-500.0,0.00027397,2]
[322209533,1712872239258,-500.0,0.00027397,2]
[322209535,1712872239268,-500.0,0.00027397,2]
[322209537,1712872239278,-500.0,0.00027397,2]
[322209539,1712872239287,-1031.2,0.00027397,2]
[322209541,1712872239297,-2127.82,0.00027397,2]
[322209543,1712872239307,-12389.67,0.00027397,2]
[322209545,1712872239317,-929.43,0.00027397,2]
[322209547,1712872239329,-1235.62,0.00027397,2]
[322209549,1712872239339,-736.41,0.00027397,2]
[322209551,1712872239349,-500.0,0.00027397,2]
[322209554,1712872239359,-500.0,0.00027397,2]
[322209556,1712872239368,-6031.39,0.00027397,2]
[322209558,1712872239378,-511.67115905,0.00027397,2]
[322209560,1712872239388,-500.0,0.00027397,2]
[322209562,1712872239397,-300.0,0.00027397,2]
[322209564,1712872239408,-500.0,0.00027397,2]
[322209566,1712872239417,-1328.23,0.00027397,2]
[322209568,1712872239426,-247.55776255,0.00027397,2]
[322209570,1712872239436,-500.0,0.00027397,2]
[322209572,1712872239446,-500.0,0.00027397,2]
[322209574,1712872239455,-500.0,0.00027397,2]
[322209576,1712872239464,-2865.61,0.00027397,2]
[322209578,1712872239474,-331.51454962,0.00027397,2]
[322209580,1712872239484,-4387.46,0.00027397,2]
[322209582,1712872239493,-500.0,0.00027397,2]
[322209584,1712872239502,-500.0,0.00027397,2]
[322209586,1712872239511,-2457.11,0.00027397,2]
[322209588,1712872239521,-1240.59,0.00027397,2]
[322209590,1712872239530,-500.0,0.00027397,2]
[322209592,1712872239539,-1412.15,0.00027397,2]
[322209594,1712872239549,-500.0,0.00027397,2]
[322209596,1712872239558,-500.0,0.00027397,2]
[322209598,1712872239568,-500.0,0.00027397,2]
[322209600,1712872239577,-500.0,0.00027397,2]
[322209602,1712872239586,-500.0,0.00027397,2]
[322209604,1712872239596,-500.0,0.00027397,2]
[322209606,1712872239605,-997.59,0.00027397,2]
[322209608,1712872239614,-564.14,0.00027397,2]
[322209610,1712872239624,-500.0,0.00027397,2]
[322209612,1712872239633,-500.0,0.00027397,2]
[322209614,1712872239642,-500.0,0.00027397,2]
[322209616,1712872239652,-500.0,0.00027397,2]
[322209619,1712872239662,-500.0,0.00027397,2]
[322209621,1712872239671,-500.0,0.00027397,2]
[322209623,1712872239681,-502.78102773,0.00027397,2]
[322209625,1712872239690,-726.34,0.00027397,2]
[322209627,1712872239699,-500.81267653,0.00027397,2]
[322209629,1712872239708,-1135.46,0.00027397,2]
[322209631,1712872239718,-1213.52,0.00027397,2]
[322209633,1712872239728,-1461.03,0.00027397,2]
[322209635,1712872239738,-500.0,0.00027397,2]
[322209637,1712872239747,-1425.41,0.00027397,2]
[322209639,1712872239755,-500.0,0.00027397,2]
[322209641,1712872239765,-500.0,0.00027397,2]
[322209643,1712872239774,-507.05941303,0.00027397,2]
[322209645,1712872239784,-500.0,0.00027397,2]
[322209647,1712872239793,-500.0,0.00027397,2]
[322209649,1712872239802,-500.0,0.00027397,2]
[322209651,1712872239813,-500.0,0.00027397,2]
[322209653,1712872239822,-1977.28,0.00027397,2]
[322209655,1712872239833,-783.05,0.00027397,2]
[322209657,1712872239843,-500.0,0.00027397,2]
[322209659,1712872239853,-14064.13,0.00027397,2]
[322209661,1712872239862,-3624.96,0.00027397,2]
[322209664,1712872239872,-400.0,0.00027397,2]
[322209666,1712872239881,-166.666666,0.00027397,2]
[322209668,1712872239891,-157.45807339,0.00027457,2]
[322209670,1712872239900,-154.10853939,0.00027665,3]
[322209672,1712872239911,-1963.97984376,0.00027669,2]
[322209674,1712872239921,-188.6336911,0.0002767,2]
[322209676,1712872239930,-2093.30000142,0.0002767,2]
[322209678,1712872239940,-500.0,0.0002767,2]
[322209680,1712872239950,-500.0,0.0002767,2]
[322209682,1712872239959,-500.0,0.00027671,2]
[322209684,1712872239968,-727.6,0.00027671,2]
[322209686,1712872239977,-500.0,0.00027671,2]
[322209688,1712872239986,-576.3008286,0.00027671,2]
[322209690,1712872239995,-500.0,0.00027671,2]
[322209692,1712872240005,-506.03015356,0.00027671,2]
[322209694,1712872240014,-756.82,0.00027671,2]
[322209696,1712872240023,-500.0,0.00027671,2]
[322209698,1712872240032,-500.0,0.00027671,2]
[322209700,1712872240042,-503.97973998,0.00027671,2]
[322209702,1712872240051,-151.0,0.00027671,2]
[322209704,1712872240060,-151.0,0.00027671,2]
[322209706,1712872240069,-151.0,0.00027671,2]
[322209708,1712872240081,-500.0,0.00027671,2]
[322209710,1712872240091,-500.0,0.00027671,2]
[322209712,1712872240100,-500.0,0.00027671,2]
[322209714,1712872240110,-2113.44,0.00027671,2]
[322209716,1712872240119,-500.0,0.00027671,2]
[322209718,1712872240130,-500.0,0.00027671,2]
[322209720,1712872240140,-500.0,0.00027671,2]
[322209722,1712872240149,-500.0,0.00027671,2]
[322209724,1712872240162,-500.0,0.00027671,2]
[322209726,1712872240172,-313.310582,0.00027671,2]
[322209738,1712872240268,-500.0,0.00027671,2]
[322209740,1712872240278,-313.310582,0.00027671,2]
[322209742,1712872240287,-557.81,0.00027671,2]
[322209744,1712872240295,-500.0,0.00027671,2]
[322209746,1712872240304,-500.0,0.00027671,2]
[322209748,1712872240314,-500.0,0.00027671,2]
[322209750,1712872240323,-601.64,0.00027671,2]
[322209752,1712872240331,-500.0,0.00027671,2]
[322209754,1712872240340,-151.0,0.00027671,2]
[322209756,1712872240349,-500.0,0.00027671,2]
[322209758,1712872240359,-667.66,0.00027671,2]
[322209760,1712872240367,-500.0,0.00027671,2]
[322209762,1712872240376,-500.0,0.00027671,2]
[322209764,1712872240385,-503.85222214,0.00027671,2]
[322209766,1712872240394,-151.0,0.00027671,2]
[322209768,1712872240403,-475.16837517,0.00027671,2]
[322209777,1712872240475,-24.83162483,0.00027671,2]
[322209779,1712872240484,-1735.2,0.00027671,2]
[322209781,1712872240493,-500.0,0.00027671,2]
[322209783,1712872240502,-151.0,0.00027671,2]
[322209785,1712872240512,-151.0,0.00027671,2]
[322209787,1712872240521,-151.0,0.00027671,2]
[322209789,1712872240530,-149.63720914,0.00027671,2]
[322209792,1712872240542,-1.36279086,0.00027671,2]
[322209794,1712872240551,-500.0,0.00027671,2]
[322209796,1712872240562,-511.0966681,0.00027671,2]
[322209798,1712872240571,-500.0,0.00027671,2]
[322209800,1712872240580,-500.0,0.00027671,2]
[322209801,1712872240589,-1321.14,0.00027671,2]
[322209804,1712872240599,-500.0,0.00027671,2]
[322209805,1712872240608,-151.0,0.00027671,2]
[322209808,1712872240617,-151.0,0.00027671,2]
[322209810,1712872240626,-500.0,0.00027671,2]
[322209812,1712872240635,-500.0,0.00027671,2]
[322209814,1712872240644,-624.27,0.00027671,2]
[322209816,1712872240654,-500.0,0.00027671,2]
[322209817,1712872240663,-757.76,0.00027671,2]
[322209819,1712872240671,-1130.25,0.00027671,2]
[322209821,1712872240680,-86.59604467,0.00027671,2]
[322209836,1712872240804,-500.0,0.00027397,2]
[322209838,1712872240814,-413.40395533,0.00027671,2]
[322209840,1712872240822,-490.81604467,0.00027671,2]
[322210946,1712872252688,3019.0464921,0.00026982,2]
[322211380,1712872271788,2368.53138688,0.00026982,2]
[322211381,1712872275737,-6500.0,0.00026982,2]
[322211387,1712872480225,2113.999999,0.00023,2]
[322211390,1712872545643,19143.95477518,0.00023,2]
[322211391,1712872548865,284.61768547,0.00023,2]
[322211392,1712872559593,365.91862679,0.00023,2]
[322211394,1712872566871,284.61768547,0.00023,2]
[322211395,1712872582874,284.61768547,0.00023,2]
[322211397,1712872606911,284.61768547,0.00023,2]
[322211404,1712873131157,-3120.42663582,0.00025276,2]
[322211405,1712873227095,-303.95639067,0.00025267,2]
[322211406,1712873227116,-242.86748276,0.00025268,2]
[322211407,1712873227137,-188.71573999,0.00025268,2]
[322211408,1712873227159,-300.0,0.00025268,2]
[322211409,1712873227180,-300.0,0.00025268,2]
[322211410,1712873227203,-1653.50687866,0.00025269,2]
[322211412,1712873346134,-1964.94666504,0.00025263,2]
[322211413,1712873346160,-994.41352296,0.00025264,2]
[322211414,1712873354121,-1099.73284956,0.00025264,2]
[322211415,1712873354143,-563.04815704,0.00025265,2]
[322211416,1712873354165,-300.0,0.00025278,2]
[322211417,1712873354185,-300.0,0.00025278,2]
[322211418,1712873354205,-1458.94921501,0.0002528,2]
[322211419,1712873354225,-200.0,0.00025281,2]
[322211420,1712873354247,-189.4275509,0.00025296,2]
[322211421,1712873354268,-197.5950348,0.00025434,2]
[322211422,1712873354290,-2998.53829537,0.00025451,2]
[322211423,1712873354314,-557.70034387,0.00025571,2]
[322211424,1712873354334,-303.95639067,0.00026024,2]
[322211425,1712873354354,-624.36279286,0.00026025,2]
[322211426,1712873354376,-623.36076521,0.00026028,2]
[322211427,1712873354399,-175.739345,0.00026216,2]
[322211428,1712873354421,-327.56059648,0.00026635,2]
[322211429,1712873354447,-295.93193325,0.00026982,2]
[322211430,1712873356284,143.29542626,0.00025263,2]
[322211431,1712873362111,-5286.8988951,0.00025263,2]
[322211432,1712873401252,459.00354755,0.00023351,2]
[322211480,1712873432031,-355.92701284,0.00025263,2]
[322211482,1712873432041,-274.64991111,0.00026999,2]
[322211484,1712873432053,-1690.29675393,0.00026999,2]
[322211486,1712873432063,-432.43889796,0.00027,2]
[322211489,1712873432084,-620.16803826,0.00027329,2]
[322211491,1712873432094,-1042.91596156,0.00027368,2]
[322211493,1712873432103,-300.0,0.00027394,2]
[322211495,1712873432113,-300.0,0.00027394,2]
[322211497,1712873432123,-548.02245487,0.00027395,2]
[322211499,1712873432132,-155.44912059,0.00027395,2]
[322211502,1712873432141,-484.27597572,0.00027395,2]
[322211504,1712873432151,-192.20549595,0.00027395,2]
[322211507,1712873432160,-1485.70436416,0.00027395,2]
[322211510,1712873432170,-868.54910044,0.00027395,2]
[322211513,1712873432180,-154.90705577,0.00027395,2]
[322211518,1712873432189,-211.40870572,0.00027395,2]
[322211520,1712873432199,-247.1671975,0.00027395,2]
[322211522,1712873432209,-253.0751491,0.00027395,2]
[322211524,1712873432220,-516.13483022,0.00027395,2]
[322211526,1712873432229,-1003.19022969,0.00027395,2]
[322211528,1712873432239,-303.24046331,0.00027395,2]
[322211530,1712873432248,-154.93800623,0.00027395,2]
[322211531,1712873432258,-358.41340596,0.00027396,2]
[322211532,1712873432268,-500.0,0.00027396,2]
[322211533,1712873432277,-152.35664233,0.00027396,2]
[322211534,1712873432287,-182.16142696,0.00027396,2]
[322211535,1712873432297,-500.0,0.00027397,2]
[322211536,1712873432307,-500.0,0.00027397,2]
[322211537,1712873432317,-500.0,0.00027397,2]
[322211538,1712873432327,-500.0,0.00027397,2]
[322211539,1712873432336,-500.0,0.00027397,2]
[322211540,1712873432346,-500.0,0.00027397,2]
[322211541,1712873432356,-500.0,0.00027397,2]
[322211542,1712873432366,-500.0,0.00027397,2]
[322211543,1712873432375,-500.0,0.00027397,2]
[322211544,1712873432385,-2113.44,0.00027397,2]
[322211545,1712873432394,-500.0,0.00027397,2]
[322211546,1712873432403,-500.0,0.00027397,2]
[322211547,1712873432413,-500.0,0.00027397,2]
[322211548,1712873432424,-506.30951657,0.00027397,2]
[322211549,1712873432433,-500.0,0.00027397,2]
[322211550,1712873432443,-511.51799614,0.00027397,2]
[322211551,1712873432457,-500.0,0.00027397,2]
[322211552,1712873432467,-500.0,0.00027397,2]
[322211553,1712873432477,-500.0,0.00027397,2]
[322211554,1712873432488,-500.0,0.00027397,2]
[322211555,1712873432498,-500.0,0.00027397,2]
[322211556,1712873432507,-370.34944153,0.00027397,2]
[322211557,1712873432517,-505.052654,0.00027397,2]
[322211558,1712873432527,-500.0,0.00027397,2]
[322211559,1712873432536,-500.0,0.00027397,2]
[322211560,1712873432545,-500.0,0.00027397,2]
[322211561,1712873432554,-500.0,0.00027397,2]
[322211562,1712873432563,-500.0,0.00027397,2]
[322211563,1712873432574,-503.21998664,0.00027397,2]
[322211564,1712873432583,-500.0,0.00027397,2]
[322211565,1712873432592,-500.0,0.00027397,2]
[322211566,1712873432602,-598.26,0.00027397,2]
[322211567,1712873432611,-500.0,0.00027397,2]
[322211568,1712873432620,-508.37236142,0.00027397,2]
[322211569,1712873432630,-347.84297722,0.00027397,2]
[322211570,1712873432639,-440.23207232,0.00027397,2]
[322211571,1712873432649,-500.0,0.00027397,2]
[322211572,1712873432658,-500.0,0.00027397,2]
[322211573,1712873432668,-500.0,0.00027397,2]
[322211574,1712873432678,-500.0,0.00027397,2]
[322211575,1712873432687,-500.0,0.00027397,2]
[322211576,1712873432697,-500.0,0.00027397,2]
[322211577,1712873432706,-500.0,0.00027397,2]
[322211578,1712873432716,-500.0,0.00027397,2]
[322211579,1712873432725,-500.0,0.00027397,2]
[322211580,1712873432734,-500.0,0.00027397,2]
[322211581,1712873432744,-500.0,0.00027397,2]
[322211582,1712873432753,-500.0,0.00027397,2]
[322211583,1712873432763,-500.0,0.00027397,2]
[322211584,1712873432773,-500.0,0.00027397,2]
[322211585,1712873432782,-500.0,0.00027397,2]
[322211586,1712873432792,-505.22713302,0.00027397,2]
[322211587,1712873432802,-500.0,0.00027397,2]
[322211588,1712873432811,-557.81,0.00027397,2]
[322211589,1712873432822,-500.0,0.00027397,2]
[322211590,1712873432834,-500.0,0.00027397,2]
[322211591,1712873432846,-500.0,0.00027397,2]
[322211592,1712873432857,-500.0,0.00027397,2]
[322211593,1712873432869,-500.0,0.00027397,2]
[322211594,1712873432879,-403.53579516,0.00027397,2]
[322211595,1712873432890,-300.0,0.00027397,2]
[322211596,1712873432902,-601.64,0.00027397,2]
[322211597,1712873432914,-500.0,0.00027397,2]
[322211598,1712873432926,-500.0,0.00027397,2]
[322211599,1712873432936,-667.66,0.00027397,2]
[322211600,1712873432948,-500.0,0.00027397,2]
[322211601,1712873432960,-331.51454962,0.00027397,2]
[322211602,1712873432970,-500.0,0.00027397,2]
[322211603,1712873432979,-500.0,0.00027397,2]
[322211604,1712873432988,-511.17542956,0.00027397,2]
[322211605,1712873432997,-500.0,0.00027397,2]
[322211606,1712873433007,-1662.9,0.00027397,2]
[322211607,1712873433017,-500.0,0.00027397,2]
[322211608,1712873433026,-500.0,0.00027397,2]
[322211609,1712873433037,-500.0,0.00027397,2]
[322211610,1712873433047,-247.55776255,0.00027397,2]
[322211611,1712873433058,-500.0,0.00027397,2]
[322211612,1712873433068,-500.0,0.00027397,2]
[322211613,1712873433078,-1330.87,0.00027397,2]
[322211614,1712873433088,-500.0,0.00027397,2]
[322211615,1712873433098,-500.0,0.00027397,2]
[322211616,1712873433108,-500.0,0.00027397,2]
[322211617,1712873433117,-500.0,0.00027397,2]
[322211618,1712873433127,-500.0,0.00027397,2]
[322211619,1712873433137,-726.18,0.00027397,2]
[322211620,1712873433258,-500.0,0.00027397,2]
[322211621,1712873433268,-500.0,0.00027397,2]
[322211622,1712873433277,-500.81267653,0.00027397,2]
[322211623,1712873433286,-1096.91,0.00027397,2]
[322211624,1712873433296,-500.0,0.00027397,2]
[322211625,1712873433305,-635.01340647,0.00027397,2]
[322211626,1712873433315,-500.0,0.00027397,2]
[322211627,1712873433324,-89.45395911,0.00027397,2]
[322211630,1712873438035,-410.54604089,0.00027397,2]
[322211631,1712873438045,-500.0,0.00027397,2]
[322211632,1712873438055,-500.0,0.00027397,2]
[322211633,1712873438065,-500.0,0.00027397,2]
[322211634,1712873438075,-500.0,0.00027397,2]
[322211635,1712873438085,-500.0,0.00027397,2]
[322211636,1712873438095,-732.24,0.00027397,2]
[322211637,1712873438105,-521.69523389,0.00027397,2]
[322211638,1712873438114,-542.88744001,0.00027397,2]
[322211639,1712873438125,-500.0,0.00027397,2]
[322211640,1712873438135,-759.24,0.00027397,2]
[322211641,1712873438144,-1538.81,0.00027397,2]
[322211644,1712873438153,-500.0,0.00027397,2]
[322211647,1712873438163,-500.0,0.00027397,2]
[322211650,1712873438172,-590.26017285,0.00027397,2]
[322211653,1712873438181,-500.0,0.00027397,2]
[322211654,1712873438190,-500.0,0.00027397,2]
[322211655,1712873438200,-500.0,0.00027397,2]
[322211656,1712873438210,-500.0,0.00027397,2]
[322211657,1712873438220,-500.0,0.00027397,2]
[322211658,1712873438229,-3624.96,0.00027397,2]
[322211659,1712873438239,-500.0,0.00027397,2]
[322211660,1712873438249,-500.0,0.00027397,2]
[322211661,1712873438258,-1425.41,0.00027397,2]
[322211662,1712873438268,-500.0,0.00027397,2]
[322211665,1712873438280,-1135.46,0.00027397,2]
[322211667,1712873438290,-500.0,0.00027397,2]
[322211669,1712873438300,-500.0,0.00027397,2]
[322211671,1712873438310,-783.05,0.00027397,2]
[322211672,1712873438320,-872.71,0.00027397,2]
[322211674,1712873438330,-500.0,0.00027397,2]
[322211675,1712873438340,-14806.5,0.00027397,2]
[322211676,1712873438349,-500.0,0.00027397,2]
[322211677,1712873438359,-500.0,0.00027397,2]
[322211679,1712873438370,-500.0,0.00027397,2]
[322211681,1712873438379,-1235.62,0.00027397,2]
[322211683,1712873438388,-2059.39,0.00027397,2]
[322211684,1712873438398,-1031.2,0.00027397,2]
[322211685,1712873438408,-500.0,0.00027397,2]
[322211686,1712873438418,-312.46210733,0.00027397,2]
[322211687,1712873438427,-511.67115905,0.00027397,2]
[322211688,1712873438437,-500.0,0.00027397,2]
[322211689,1712873438448,-384.91072681,0.00027397,2]
[322211690,1712873438460,-500.0,0.00027397,2]
[322211691,1712873438470,-736.41,0.00027397,2]
[322211692,1712873438479,-500.0,0.00027397,2]
[322211693,1712873438489,-500.0,0.00027397,2]
[322211694,1712873438500,-2127.82,0.00027397,2]
[322211695,1712873438510,-500.0,0.00027397,2]
[322211696,1712873438519,-981.99,0.00027397,2]
[322211697,1712873438531,-500.0,0.00027397,2]
[322211698,1712873438540,-500.0,0.00027397,2]
[322211699,1712873438549,-500.0,0.00027397,2]
[322211700,1712873438559,-6031.39,0.00027397,2]
[322211701,1712873438568,-500.0,0.00027397,2]
[322211702,1712873438578,-500.0,0.00027397,2]
[322211703,1712873438587,-500.0,0.00027397,2]
[322211704,1712873438596,-500.0,0.00027397,2]
[322211705,1712873438605,-500.0,0.00027397,2]
[322211706,1712873438614,-756.82,0.00027397,2]
[322211707,1712873438625,-500.0,0.00027397,2]
[322211708,1712873438634,-500.0,0.00027397,2]
[322211709,1712873438644,-500.0,0.00027397,2]
[322211710,1712873438653,-1328.23,0.00027397,2]
[322211711,1712873438662,-4886.67,0.00027397,2]
[322211712,1712873438671,-1063.88,0.00027397,2]
[322211713,1712873438682,-12389.67,0.00027397,2]
[322211714,1712873438691,-500.0,0.00027397,2]
[322211715,1712873438700,-2865.61,0.00027397,2]
[322211716,1712873438710,-500.0,0.00027397,2]
[322211717,1712873438719,-1377.34,0.00027397,2]
[322211718,1712873438730,-500.0,0.00027397,2]
[322211719,1712873438739,-1213.52,0.00027397,2]
[322211720,1712873438748,-500.0,0.00027397,2]
[322211721,1712873438758,-2457.11,0.00027397,2]
[322211722,1712873438768,-154.93802479,0.00027397,2]
[322211723,1712873438777,-500.0,0.00027397,2]
[322211724,1712873438787,-500.0,0.00027397,2]
[322211725,1712873438796,-1412.15,0.00027397,2]
[322211726,1712873438805,-500.0,0.00027397,2]
[322211727,1712873438815,-500.0,0.00027397,2]
[322211729,1712873438825,-507.05941303,0.00027397,2]
[322211730,1712873438834,-500.0,0.00027397,2]
[322211732,1712873438844,-763.73,0.00027397,2]